[Event "Titled Tuesday Blitz January 17 Late 2023"]
[White "Medeiros,Thauane Ferreira"]
[Black "Milikow, Yoav"]
[WhiteFideId "2134470"]
[BlackFideId "2822237"]
[WhiteElo "1854"]
[BlackElo "2394"]
[Result "0-1"]
[Round "05"]
[TimeControl "180+2"]
[Date "2023.01.17"]
[WhiteClock "0:00:02"]
[BlackClock "0:00:21"]

1. d4 {[%clk 0:02:36]}  Nf6 {[%clk 0:02:58]} 2. Bg5 {[%clk 0:02:34]}  Ne4 {[%clk 0:02:33]} 3. Bf4 {[%clk 0:02:32]}  c5 {[%clk 0:02:23]} 4. f3 {[%clk 0:02:28]}  Nf6 {[%clk 0:02:22]} 5. dxc5 {[%clk 0:02:26]}  Nc6 {[%clk 0:02:21]} 6. e4 {[%clk 0:02:25]}  Qa5+ {[%clk 0:02:20]} 7. Qd2 {[%clk 0:02:23]}  Qxc5 {[%clk 0:02:20]} 8. Be3 {[%clk 0:02:18]}  Qe5 {[%clk 0:02:14]} 9. Nc3 {[%clk 0:02:16]}  Qb8 {[%clk 0:02:13]} 10. O-O-O {[%clk 0:02:11]}  d6 {[%clk 0:02:14]} 11. Nge2 {[%clk 0:02:06]}  Bd7 {[%clk 0:02:14]} 12. Kb1 {[%clk 0:02:02]}  g6 {[%clk 0:02:14]} 13. h4 {[%clk 0:01:59]}  Bg7 {[%clk 0:02:14]} 14. g4 {[%clk 0:01:55]}  Ne5 {[%clk 0:02:09]} 15. Bg2 {[%clk 0:01:52]}  Nc4 {[%clk 0:02:07]} 16. Qd3 {[%clk 0:01:48]}  Nxe3 {[%clk 0:02:08]} 17. Qxe3 {[%clk 0:01:49]}  O-O {[%clk 0:02:06]} 18. h5 {[%clk 0:01:45]}  Qc7 {[%clk 0:02:06]} 19. h6 {[%clk 0:01:42]}  Bh8 {[%clk 0:02:05]} 20. g5 {[%clk 0:01:42]}  Ne8 {[%clk 0:02:04]} 21. f4 {[%clk 0:01:40]}  Bc6 {[%clk 0:01:59]} 22. Nd5 {[%clk 0:01:34]}  Bxd5 {[%clk 0:01:53]} 23. Rxd5 {[%clk 0:01:35]}  Rc8 {[%clk 0:01:48]} 24. c3 {[%clk 0:01:33]}  Qb8 {[%clk 0:01:48]} 25. Rhd1 {[%clk 0:01:29]}  Nc7 {[%clk 0:01:48]} 26. R5d2 {[%clk 0:01:27]}  Rcd8 {[%clk 0:01:48]} 27. f5 {[%clk 0:01:24]}  Na8 {[%clk 0:01:47]} 28. fxg6 {[%clk 0:01:19]}  hxg6 {[%clk 0:01:46]} 29. h7+ {[%clk 0:01:14]}  Kg7 {[%clk 0:01:44]} 30. Rh1 {[%clk 0:01:11]}  Qc8 {[%clk 0:01:40]} 31. Qd4+ {[%clk 0:01:07]}  e5 {[%clk 0:01:36]} 32. Qf2 {[%clk 0:01:01]}  f5 {[%clk 0:01:34]} 33. gxf6+ {[%clk 0:00:57]}  Rxf6 {[%clk 0:01:33]} 34. Qh4 {[%clk 0:00:51]}  Nb6 {[%clk 0:01:22]} 35. Bh3 {[%clk 0:00:48]}  Qc6 {[%clk 0:01:19]} 36. Ng3 {[%clk 0:00:45]}  Nc4 {[%clk 0:01:16]} 37. Rg2 {[%clk 0:00:36]}  Kf7 {[%clk 0:01:15]} 38. Rhg1 {[%clk 0:00:33]}  Qb6 {[%clk 0:01:11]} 39. Bf5 {[%clk 0:00:26]}  Nd2+ {[%clk 0:01:09]} 40. Ka1 {[%clk 0:00:22]}  Nf3 {[%clk 0:01:09]} 41. Bxg6+ {[%clk 0:00:20]}  Rxg6 {[%clk 0:01:08]} 42. Qh5 {[%clk 0:00:18]}  Qxg1+ {[%clk 0:01:00]} 43. Rxg1 {[%clk 0:00:18]}  Nxg1 {[%clk 0:01:01]} 44. Nf5 {[%clk 0:00:17]}  Nf3 {[%clk 0:00:49]} 45. a3 {[%clk 0:00:14]}  Rf8 {[%clk 0:00:41]} 46. Qxf3 {[%clk 0:00:13]}  Rf6 {[%clk 0:00:40]} 47. Qh5+ {[%clk 0:00:13]}  Ke6 {[%clk 0:00:41]} 48. Qg4 {[%clk 0:00:11]}  Kd7 {[%clk 0:00:39]} 49. Nh6+ {[%clk 0:00:08]}  Kc7 {[%clk 0:00:39]} 50. Ng8 {[%clk 0:00:08]}  Rf4 {[%clk 0:00:37]} 51. Qe6 {[%clk 0:00:06]}  R8f7 {[%clk 0:00:33]} 52. Ne7 {[%clk 0:00:05]}  Rxh7 {[%clk 0:00:30]} 53. Nd5+ {[%clk 0:00:05]}  Kc6 {[%clk 0:00:27]} 54. Qc8+ {[%clk 0:00:04]}  Kb5 {[%clk 0:00:27]} 55. a4+ {[%clk 0:00:04]}  Ka5 {[%clk 0:00:25]} 56. b4+ {[%clk 0:00:02]}  Kxa4 {[%clk 0:00:22]} 57. Qe8+ {[%clk 0:00:02]}  Kb3 {[%clk 0:00:21]} 0-1


[Site "https://www.chess.com"]

[Event "Titled Tuesday Blitz January 17 Late 2023"]
[White "Kamsky, Gata"]
[Black "Richter, Paul"]
[WhiteFideId "2000024"]
[BlackFideId "2046350"]
[WhiteElo "2665"]
[BlackElo "2171"]
[Result "1-0"]
[Round "05"]
[TimeControl "180+2"]
[Date "2023.01.17"]
[WhiteClock "0:00:36"]
[BlackClock "0:00:02"]

1. e4 {[%clk 0:03:00]}  c5 {[%clk 0:02:58]} 2. Nf3 {[%clk 0:02:57]}  d6 {[%clk 0:02:57]} 3. d4 {[%clk 0:02:56]}  cxd4 {[%clk 0:02:58]} 4. Nxd4 {[%clk 0:02:56]}  Nf6 {[%clk 0:02:58]} 5. Nc3 {[%clk 0:02:56]}  g6 {[%clk 0:02:58]} 6. Be3 {[%clk 0:02:54]}  Bg7 {[%clk 0:02:58]} 7. f3 {[%clk 0:02:52]}  O-O {[%clk 0:02:58]} 8. Qd2 {[%clk 0:02:53]}  Nc6 {[%clk 0:02:58]} 9. Bc4 {[%clk 0:02:51]}  Bd7 {[%clk 0:02:58]} 10. O-O {[%clk 0:02:48]}  Rc8 {[%clk 0:02:43]} 11. Bb3 {[%clk 0:02:47]}  Ne5 {[%clk 0:02:37]} 12. a4 {[%clk 0:02:46]}  Nc4 {[%clk 0:02:30]} 13. Bxc4 {[%clk 0:02:44]}  Rxc4 {[%clk 0:02:31]} 14. a5 {[%clk 0:02:41]}  Qb8 {[%clk 0:02:18]} 15. b3 {[%clk 0:02:14]}  Rcc8 {[%clk 0:02:17]} 16. Nd5 {[%clk 0:02:11]}  Nxd5 {[%clk 0:02:14]} 17. exd5 {[%clk 0:02:11]}  b5 {[%clk 0:01:44]} 18. axb6 {[%clk 0:02:02]}  axb6 {[%clk 0:01:45]} 19. Bh6 {[%clk 0:01:52]}  Bxh6 {[%clk 0:00:57]} 20. Qxh6 {[%clk 0:01:51]}  b5 {[%clk 0:00:58]} 21. Rfe1 {[%clk 0:01:38]}  Qb6 {[%clk 0:00:56]} 22. Rad1 {[%clk 0:01:34]}  e5 {[%clk 0:00:23]} 23. dxe6 {[%clk 0:01:33]}  fxe6 {[%clk 0:00:24]} 24. Qe3 {[%clk 0:01:31]}  e5 {[%clk 0:00:20]} 25. Nf5 {[%clk 0:01:30]}  Qxe3+ {[%clk 0:00:17]} 26. Nxe3 {[%clk 0:01:29]}  Rc6 {[%clk 0:00:17]} 27. c4 {[%clk 0:01:21]}  bxc4 {[%clk 0:00:16]} 28. Nxc4 {[%clk 0:01:18]}  Be6 {[%clk 0:00:13]} 29. Rxd6 {[%clk 0:01:17]}  Rxd6 {[%clk 0:00:11]} 30. Nxd6 {[%clk 0:01:17]}  Bxb3 {[%clk 0:00:12]} 31. Rxe5 {[%clk 0:01:17]}  Bf7 {[%clk 0:00:11]} 32. Re7 {[%clk 0:01:16]}  Bd5 {[%clk 0:00:11]} 33. Kf2 {[%clk 0:01:09]}  Rd8 {[%clk 0:00:11]} 34. Nb5 {[%clk 0:01:04]}  Rb8 {[%clk 0:00:11]} 35. Nc3 {[%clk 0:01:02]}  Bf7 {[%clk 0:00:10]} 36. h4 {[%clk 0:01:01]}  h6 {[%clk 0:00:09]} 37. Ne4 {[%clk 0:01:00]}  Kf8 {[%clk 0:00:09]} 38. Rc7 {[%clk 0:00:59]}  Rb6 {[%clk 0:00:07]} 39. g4 {[%clk 0:00:53]}  Ra6 {[%clk 0:00:07]} 40. Nc5 {[%clk 0:00:47]}  Rd6 {[%clk 0:00:05]} 41. Nd7+ {[%clk 0:00:46]}  Kg8 {[%clk 0:00:04]} 42. Ne5 {[%clk 0:00:46]}  Be8 {[%clk 0:00:03]} 43. f4 {[%clk 0:00:40]}  Re6 {[%clk 0:00:03]} 44. g5 {[%clk 0:00:37]}  hxg5 {[%clk 0:00:03]} 45. hxg5 {[%clk 0:00:37]}  Ra6 {[%clk 0:00:04]} 46. Ng4 {[%clk 0:00:36]}  Bf7 {[%clk 0:00:02]} 47. Nh6+ {[%clk 0:00:36]} 1-0


[Site "https://www.chess.com"]

[Event "Titled Tuesday Blitz January 17 Late 2023"]
[White "Leitao, Rafael"]
[Black "Mendez Fortes, Eduardo Jesus"]
[WhiteFideId "2101246"]
[BlackFideId "3502376"]
[WhiteElo "2592"]
[BlackElo "2250"]
[Result "1-0"]
[Round "05"]
[TimeControl "180+2"]
[Date "2023.01.17"]
[WhiteClock "0:00:36"]
[BlackClock "0:00:14"]

1. c4 {[%clk 0:02:59]}  Nf6 {[%clk 0:02:56]} 2. Nc3 {[%clk 0:02:55]}  e6 {[%clk 0:02:52]} 3. e4 {[%clk 0:02:54]}  d5 {[%clk 0:02:52]} 4. e5 {[%clk 0:02:52]}  d4 {[%clk 0:02:52]} 5. exf6 {[%clk 0:02:53]}  dxc3 {[%clk 0:02:52]} 6. bxc3 {[%clk 0:02:53]}  Qxf6 {[%clk 0:02:52]} 7. Nf3 {[%clk 0:02:51]}  b6 {[%clk 0:02:52]} 8. d4 {[%clk 0:02:51]}  h6 {[%clk 0:02:52]} 9. Bd3 {[%clk 0:02:46]}  Bb7 {[%clk 0:02:52]} 10. O-O {[%clk 0:02:45]}  Nd7 {[%clk 0:02:51]} 11. Nd2 {[%clk 0:02:41]}  O-O-O {[%clk 0:02:45]} 12. a4 {[%clk 0:02:33]}  e5 {[%clk 0:02:39]} 13. Bb2 {[%clk 0:02:11]}  Qg5 {[%clk 0:02:22]} 14. Be4 {[%clk 0:02:05]}  Bxe4 {[%clk 0:02:00]} 15. Nxe4 {[%clk 0:02:04]}  Qf4 {[%clk 0:02:00]} 16. Nd2 {[%clk 0:01:42]}  Nf6 {[%clk 0:01:53]} 17. a5 {[%clk 0:01:35]}  Bd6 {[%clk 0:01:37]} 18. axb6 {[%clk 0:01:31]}  axb6 {[%clk 0:01:38]} 19. c5 {[%clk 0:01:27]}  bxc5 {[%clk 0:01:36]} 20. Qa4 {[%clk 0:01:03]}  Rde8 {[%clk 0:00:27]} 21. Qc6 {[%clk 0:01:01]}  Kd8 {[%clk 0:00:24]} 22. dxc5 {[%clk 0:00:56]}  Ng4 {[%clk 0:00:14]} 23. g3 {[%clk 0:00:51]}  Qxd2 {[%clk 0:00:14]} 24. cxd6 {[%clk 0:00:48]}  cxd6 {[%clk 0:00:14]} 25. Ra7 {[%clk 0:00:36]} 1-0


[Site "https://www.chess.com"]

[Event "Titled Tuesday Blitz January 17 Late 2023"]
[White "Principe, Gerson"]
[Black "Nazari, Arad"]
[WhiteFideId "3804550"]
[BlackFideId "12577324"]
[WhiteElo "2226"]
[BlackElo "2367"]
[Result "0-1"]
[Round "05"]
[TimeControl "180+2"]
[Date "2023.01.17"]
[WhiteClock "0:01:41"]
[BlackClock "0:02:42"]

1. d4 {[%clk 0:03:00]}  Nf6 {[%clk 0:03:00]} 2. Nf3 {[%clk 0:03:01]}  g6 {[%clk 0:03:00]} 3. e3 {[%clk 0:03:00]}  Bg7 {[%clk 0:02:59]} 4. Be2 {[%clk 0:03:01]}  O-O {[%clk 0:03:00]} 5. O-O {[%clk 0:03:02]}  d5 {[%clk 0:03:00]} 6. b3 {[%clk 0:02:58]}  c5 {[%clk 0:02:59]} 7. Bb2 {[%clk 0:02:58]}  Ne4 {[%clk 0:02:57]} 8. Nbd2 {[%clk 0:02:58]}  Nc6 {[%clk 0:02:57]} 9. c4 {[%clk 0:02:57]}  cxd4 {[%clk 0:02:56]} 10. Nxd4 {[%clk 0:02:22]}  Nxd2 {[%clk 0:02:51]} 11. Nxc6 {[%clk 0:02:09]}  bxc6 {[%clk 0:02:51]} 12. Bxg7 {[%clk 0:02:07]}  Nxf1 {[%clk 0:02:48]} 13. Bxf8 {[%clk 0:01:45]}  Nxe3 {[%clk 0:02:48]} 14. Qd4 {[%clk 0:01:41]}  Nf5 {[%clk 0:02:42]} 0-1


[Site "https://www.chess.com"]

[Event "Titled Tuesday Blitz January 17 Late 2023"]
[White "Wieczorek, Oskar"]
[Black "Fisher_TheGalactic"]
[WhiteFideId "1133950"]
[WhiteElo "2512"]
[BlackElo "2537"]
[Result "1-0"]
[Round "05"]
[TimeControl "180+2"]
[Date "2023.01.17"]
[WhiteClock "0:00:33"]
[BlackClock "0:00:01"]

1. e4 {[%clk 0:03:00]}  e6 {[%clk 0:02:59]} 2. d4 {[%clk 0:02:59]}  d5 {[%clk 0:03:00]} 3. Nd2 {[%clk 0:03:00]}  dxe4 {[%clk 0:02:59]} 4. Nxe4 {[%clk 0:03:00]}  Nd7 {[%clk 0:03:00]} 5. Nf3 {[%clk 0:03:00]}  Ngf6 {[%clk 0:03:01]} 6. Bd3 {[%clk 0:02:59]}  Nxe4 {[%clk 0:03:00]} 7. Bxe4 {[%clk 0:03:00]}  Nf6 {[%clk 0:03:00]} 8. Bd3 {[%clk 0:03:01]}  c5 {[%clk 0:03:00]} 9. Be3 {[%clk 0:03:01]}  cxd4 {[%clk 0:03:00]} 10. Bxd4 {[%clk 0:02:58]}  Be7 {[%clk 0:03:00]} 11. Qe2 {[%clk 0:02:57]}  Bd7 {[%clk 0:02:58]} 12. O-O-O {[%clk 0:02:57]}  Qc7 {[%clk 0:02:57]} 13. Kb1 {[%clk 0:02:43]}  Bc5 {[%clk 0:02:47]} 14. Bxf6 {[%clk 0:02:37]}  gxf6 {[%clk 0:02:30]} 15. Bb5 {[%clk 0:02:35]}  O-O-O {[%clk 0:02:25]} 16. Rxd7 {[%clk 0:02:33]}  Rxd7 {[%clk 0:02:26]} 17. Bxd7+ {[%clk 0:02:34]}  Qxd7 {[%clk 0:02:26]} 18. Rd1 {[%clk 0:02:25]}  Qc7 {[%clk 0:02:26]} 19. Ne1 {[%clk 0:02:21]}  Rd8 {[%clk 0:02:16]} 20. Nd3 {[%clk 0:02:22]}  Be7 {[%clk 0:02:15]} 21. f4 {[%clk 0:02:19]}  f5 {[%clk 0:02:15]} 22. g3 {[%clk 0:02:04]}  Bf6 {[%clk 0:02:12]} 23. Re1 {[%clk 0:02:02]}  Qb6 {[%clk 0:02:10]} 24. a3 {[%clk 0:01:56]}  Rd4 {[%clk 0:02:04]} 25. Qd2 {[%clk 0:01:35]}  Re4 {[%clk 0:01:59]} 26. Rd1 {[%clk 0:01:34]}  Qd4 {[%clk 0:01:44]} 27. Qa5 {[%clk 0:01:09]}  h5 {[%clk 0:00:52]} 28. Qb5 {[%clk 0:01:04]}  Qd8 {[%clk 0:00:36]} 29. c3 {[%clk 0:00:43]}  a6 {[%clk 0:00:31]} 30. Qc5+ {[%clk 0:00:43]}  Qc7 {[%clk 0:00:31]} 31. Qf8+ {[%clk 0:00:41]}  Bd8 {[%clk 0:00:20]} 32. Ne5 {[%clk 0:00:35]}  Re2 {[%clk 0:00:07]} 33. Nxf7 {[%clk 0:00:35]}  Qxf7 {[%clk 0:00:01]} 34. Qxd8# {[%clk 0:00:33]} 1-0


[Site "https://www.chess.com"]

[Event "Titled Tuesday Blitz January 17 Late 2023"]
[White "Perez Perez, Gabriel"]
[Black "Vlassov, Nikolai"]
[WhiteFideId "32089147"]
[BlackFideId "4103360"]
[WhiteElo "2185"]
[BlackElo "2283"]
[Result "0-1"]
[Round "05"]
[TimeControl "180+2"]
[Date "2023.01.17"]
[WhiteClock "0:00:02"]
[BlackClock "0:00:09"]

1. c4 {[%clk 0:03:00]}  e5 {[%clk 0:02:59]} 2. Nf3 {[%clk 0:02:53]}  e4 {[%clk 0:02:56]} 3. Nd4 {[%clk 0:02:52]}  c6 {[%clk 0:02:53]} 4. Nc3 {[%clk 0:02:50]}  d5 {[%clk 0:02:49]} 5. cxd5 {[%clk 0:02:50]}  Nf6 {[%clk 0:02:46]} 6. e3 {[%clk 0:02:46]}  cxd5 {[%clk 0:02:43]} 7. d3 {[%clk 0:02:38]}  exd3 {[%clk 0:02:39]} 8. Bxd3 {[%clk 0:02:34]}  Nc6 {[%clk 0:02:39]} 9. Nxc6 {[%clk 0:02:23]}  bxc6 {[%clk 0:02:39]} 10. O-O {[%clk 0:02:23]}  Bd6 {[%clk 0:02:38]} 11. g3 {[%clk 0:02:19]}  h5 {[%clk 0:02:37]} 12. h4 {[%clk 0:02:16]}  Qd7 {[%clk 0:02:31]} 13. Re1 {[%clk 0:02:03]}  O-O {[%clk 0:01:59]} 14. e4 {[%clk 0:02:02]}  Bc5 {[%clk 0:01:46]} 15. Na4 {[%clk 0:01:48]}  Bxf2+ {[%clk 0:01:36]} 16. Kxf2 {[%clk 0:01:44]}  dxe4 {[%clk 0:01:36]} 17. Bf1 {[%clk 0:01:36]}  Qf5+ {[%clk 0:01:27]} 18. Kg1 {[%clk 0:01:21]}  Be6 {[%clk 0:01:18]} 19. Be3 {[%clk 0:01:17]}  Rfd8 {[%clk 0:01:01]} 20. Qe2 {[%clk 0:01:12]}  Ng4 {[%clk 0:00:56]} 21. Bf4 {[%clk 0:01:05]}  Rd4 {[%clk 0:00:48]} 22. Nc3 {[%clk 0:01:00]}  Bc4 {[%clk 0:00:40]} 23. Qg2 {[%clk 0:00:51]}  Qc5 {[%clk 0:00:26]} 24. Kh1 {[%clk 0:00:47]}  Bd5 {[%clk 0:00:23]} 25. Nxd5 {[%clk 0:00:44]}  cxd5 {[%clk 0:00:23]} 26. Rac1 {[%clk 0:00:40]}  Qb6 {[%clk 0:00:20]} 27. b3 {[%clk 0:00:32]}  a5 {[%clk 0:00:18]} 28. Be2 {[%clk 0:00:27]}  a4 {[%clk 0:00:18]} 29. Bxg4 {[%clk 0:00:26]}  hxg4 {[%clk 0:00:18]} 30. Be3 {[%clk 0:00:27]}  axb3 {[%clk 0:00:18]} 31. Bxd4 {[%clk 0:00:27]}  Qxd4 {[%clk 0:00:17]} 32. axb3 {[%clk 0:00:27]}  Rb8 {[%clk 0:00:16]} 33. Rb1 {[%clk 0:00:27]}  Qe5 {[%clk 0:00:14]} 34. Kh2 {[%clk 0:00:26]}  f5 {[%clk 0:00:13]} 35. b4 {[%clk 0:00:25]}  Rc8 {[%clk 0:00:13]} 36. Re2 {[%clk 0:00:20]}  Rc3 {[%clk 0:00:11]} 37. b5 {[%clk 0:00:17]}  f4 {[%clk 0:00:12]} 38. Rc2 {[%clk 0:00:09]}  Rxg3 {[%clk 0:00:11]} 39. Qd2 {[%clk 0:00:05]}  f3 {[%clk 0:00:08]} 40. Kh1 {[%clk 0:00:02]}  Rh3+ {[%clk 0:00:08]} 41. Kg1 {[%clk 0:00:02]}  Qg3+ {[%clk 0:00:09]} 0-1


[Site "https://www.chess.com"]

[Event "Titled Tuesday Blitz January 17 Late 2023"]
[White "Graif, William"]
[Black "Sai Krishna G V"]
[WhiteFideId "2609835"]
[BlackFideId "5028280"]
[WhiteElo "2304"]
[BlackElo "2384"]
[Result "1-0"]
[Round "05"]
[TimeControl "180+2"]
[Date "2023.01.17"]
[WhiteClock "0:00:12"]
[BlackClock "0:00:07"]

1. e4 {[%clk 0:02:58]}  e5 {[%clk 0:03:00]} 2. Nf3 {[%clk 0:02:56]}  Nc6 {[%clk 0:03:01]} 3. Bc4 {[%clk 0:02:56]}  Nf6 {[%clk 0:03:00]} 4. d3 {[%clk 0:02:56]}  h6 {[%clk 0:03:00]} 5. O-O {[%clk 0:02:54]}  g6 {[%clk 0:03:00]} 6. Qe1 {[%clk 0:02:31]}  Bg7 {[%clk 0:02:58]} 7. b4 {[%clk 0:02:31]}  d6 {[%clk 0:02:48]} 8. Bb2 {[%clk 0:02:29]}  O-O {[%clk 0:02:47]} 9. b5 {[%clk 0:02:24]}  Ne7 {[%clk 0:02:46]} 10. Nbd2 {[%clk 0:02:14]}  Nh5 {[%clk 0:02:46]} 11. d4 {[%clk 0:02:06]}  c6 {[%clk 0:02:29]} 12. dxe5 {[%clk 0:01:57]}  cxb5 {[%clk 0:02:29]} 13. Bxb5 {[%clk 0:01:33]}  dxe5 {[%clk 0:02:18]} 14. Bxe5 {[%clk 0:01:23]}  Bxe5 {[%clk 0:02:04]} 15. Nxe5 {[%clk 0:01:24]}  Qc7 {[%clk 0:02:04]} 16. Ndf3 {[%clk 0:01:12]}  Qxc2 {[%clk 0:01:58]} 17. Qb4 {[%clk 0:01:11]}  Nc6 {[%clk 0:01:52]} 18. Nxc6 {[%clk 0:01:05]}  bxc6 {[%clk 0:01:50]} 19. Rfc1 {[%clk 0:01:04]}  Qxc1+ {[%clk 0:01:41]} 20. Rxc1 {[%clk 0:01:04]}  cxb5 {[%clk 0:01:42]} 21. Qxb5 {[%clk 0:01:02]}  Be6 {[%clk 0:01:38]} 22. Qe2 {[%clk 0:00:51]}  Rfd8 {[%clk 0:01:30]} 23. h3 {[%clk 0:00:49]}  Nf4 {[%clk 0:01:28]} 24. Qe3 {[%clk 0:00:48]}  g5 {[%clk 0:01:27]} 25. h4 {[%clk 0:00:46]}  Rd3 {[%clk 0:01:26]} 26. Qc5 {[%clk 0:00:38]}  Ne2+ {[%clk 0:01:24]} 27. Kh2 {[%clk 0:00:36]}  Nxc1 {[%clk 0:01:25]} 28. Qxc1 {[%clk 0:00:32]}  Bxa2 {[%clk 0:01:13]} 29. hxg5 {[%clk 0:00:32]}  h5 {[%clk 0:01:07]} 30. Qc6 {[%clk 0:00:28]}  Rad8 {[%clk 0:01:04]} 31. g6 {[%clk 0:00:25]}  R3d6 {[%clk 0:00:58]} 32. gxf7+ {[%clk 0:00:25]}  Bxf7 {[%clk 0:00:59]} 33. Qc5 {[%clk 0:00:25]}  Rg6 {[%clk 0:00:46]} 34. Qxa7 {[%clk 0:00:21]}  Re8 {[%clk 0:00:46]} 35. Qd4 {[%clk 0:00:20]}  Rg4 {[%clk 0:00:41]} 36. Ne5 {[%clk 0:00:19]}  Rg7 {[%clk 0:00:38]} 37. Nxf7 {[%clk 0:00:19]}  Rxf7 {[%clk 0:00:39]} 38. f3 {[%clk 0:00:19]}  Rg7 {[%clk 0:00:38]} 39. Qe3 {[%clk 0:00:20]}  Kh7 {[%clk 0:00:38]} 40. f4 {[%clk 0:00:20]}  Reg8 {[%clk 0:00:38]} 41. Qf3 {[%clk 0:00:20]}  Rg4 {[%clk 0:00:37]} 42. e5 {[%clk 0:00:20]}  Kg6 {[%clk 0:00:35]} 43. f5+ {[%clk 0:00:20]}  Kg5 {[%clk 0:00:34]} 44. f6 {[%clk 0:00:20]}  Rh4+ {[%clk 0:00:28]} 45. Kg1 {[%clk 0:00:20]}  Rf4 {[%clk 0:00:22]} 46. Qxf4+ {[%clk 0:00:17]}  Kxf4 {[%clk 0:00:21]} 47. f7 {[%clk 0:00:17]}  Rf8 {[%clk 0:00:10]} 48. e6 {[%clk 0:00:17]}  Kg5 {[%clk 0:00:10]} 49. e7 {[%clk 0:00:18]}  Rxf7 {[%clk 0:00:10]} 50. e8=Q {[%clk 0:00:18]}  Rf6 {[%clk 0:00:10]} 51. Qe5+ {[%clk 0:00:18]}  Rf5 {[%clk 0:00:10]} 52. Qg7+ {[%clk 0:00:18]}  Kh4 {[%clk 0:00:09]} 53. Kh2 {[%clk 0:00:18]}  Rg5 {[%clk 0:00:09]} 54. Qf6 {[%clk 0:00:16]}  Kg4 {[%clk 0:00:09]} 55. Qe6+ {[%clk 0:00:16]}  Kf4 {[%clk 0:00:09]} 56. Qf6+ {[%clk 0:00:16]}  Rf5 {[%clk 0:00:09]} 57. Qd4+ {[%clk 0:00:16]}  Kg5 {[%clk 0:00:10]} 58. Qe3+ {[%clk 0:00:16]}  Kg6 {[%clk 0:00:10]} 59. Kh3 {[%clk 0:00:16]}  Rg5 {[%clk 0:00:10]} 60. Qe4+ {[%clk 0:00:16]}  Kh6 {[%clk 0:00:11]} 61. Qe6+ {[%clk 0:00:15]}  Rg6 {[%clk 0:00:11]} 62. Qf7 {[%clk 0:00:15]}  Rg4 {[%clk 0:00:10]} 63. Qf8+ {[%clk 0:00:15]}  Kg6 {[%clk 0:00:11]} 64. Qh8 {[%clk 0:00:14]}  Kg5 {[%clk 0:00:10]} 65. Qg7+ {[%clk 0:00:14]}  Kf5 {[%clk 0:00:11]} 66. Qh6 {[%clk 0:00:13]}  Rg5 {[%clk 0:00:09]} 67. g3 {[%clk 0:00:13]}  Rg6 {[%clk 0:00:08]} 68. Qxh5+ {[%clk 0:00:12]}  Kf6 {[%clk 0:00:09]} 69. Kh4 {[%clk 0:00:12]}  Kg7 {[%clk 0:00:09]} 70. Qe5+ {[%clk 0:00:12]}  Kh7 {[%clk 0:00:09]} 71. g4 {[%clk 0:00:12]}  Rh6+ {[%clk 0:00:09]} 72. Kg3 {[%clk 0:00:13]}  Rg6 {[%clk 0:00:09]} 73. g5 {[%clk 0:00:13]}  Rg7 {[%clk 0:00:10]} 74. Kg4 {[%clk 0:00:13]}  Kg6 {[%clk 0:00:10]} 75. Qf6+ {[%clk 0:00:13]}  Kh7 {[%clk 0:00:10]} 76. Kh5 {[%clk 0:00:13]}  Kg8 {[%clk 0:00:10]} 77. g6 {[%clk 0:00:12]}  Kh8 {[%clk 0:00:06]} 78. Qf8+ {[%clk 0:00:12]}  Rg8 {[%clk 0:00:07]} 79. Qh6# {[%clk 0:00:12]} 1-0


[Site "https://www.chess.com"]

[Event "Titled Tuesday Blitz January 17 Late 2023"]
[White "Ozates, Tuna"]
[Black "Bjelobrk, Igor"]
[WhiteFideId "6354521"]
[BlackFideId "4300726"]
[WhiteElo "2251"]
[BlackElo "2403"]
[Result "0-1"]
[Round "05"]
[TimeControl "180+2"]
[Date "2023.01.17"]
[WhiteClock "0:00:02"]
[BlackClock "0:01:23"]

1. e4 {[%clk 0:02:50]}  c5 {[%clk 0:02:58]} 2. Nc3 {[%clk 0:02:49]}  e6 {[%clk 0:02:57]} 3. g3 {[%clk 0:02:48]}  d5 {[%clk 0:02:56]} 4. Bg2 {[%clk 0:02:48]}  d4 {[%clk 0:02:55]} 5. Nce2 {[%clk 0:02:48]}  e5 {[%clk 0:02:55]} 6. d3 {[%clk 0:02:47]}  Nc6 {[%clk 0:02:55]} 7. f4 {[%clk 0:02:47]}  f6 {[%clk 0:02:55]} 8. Nf3 {[%clk 0:02:48]}  Nh6 {[%clk 0:02:54]} 9. c4 {[%clk 0:02:48]}  Nf7 {[%clk 0:02:54]} 10. a3 {[%clk 0:02:46]}  a5 {[%clk 0:02:53]} 11. O-O {[%clk 0:02:43]}  Bd6 {[%clk 0:02:50]} 12. f5 {[%clk 0:02:24]}  Bd7 {[%clk 0:02:46]} 13. Bd2 {[%clk 0:02:24]}  Qe7 {[%clk 0:02:43]} 14. Qb3 {[%clk 0:02:09]}  Ra7 {[%clk 0:02:40]} 15. Nh4 {[%clk 0:01:58]}  Kd8 {[%clk 0:02:37]} 16. Qc2 {[%clk 0:01:56]}  Kc7 {[%clk 0:02:37]} 17. b3 {[%clk 0:01:55]}  Rha8 {[%clk 0:02:31]} 18. a4 {[%clk 0:01:47]}  Rh8 {[%clk 0:02:29]} 19. Bf3 {[%clk 0:01:36]}  Raa8 {[%clk 0:02:28]} 20. Bh5 {[%clk 0:01:34]}  Rag8 {[%clk 0:02:24]} 21. Bxf7 {[%clk 0:01:32]}  Qxf7 {[%clk 0:02:25]} 22. Kh1 {[%clk 0:01:15]}  b6 {[%clk 0:02:24]} 23. Rf2 {[%clk 0:01:13]}  Be7 {[%clk 0:02:19]} 24. Raf1 {[%clk 0:01:12]}  Be8 {[%clk 0:02:12]} 25. g4 {[%clk 0:01:00]}  g5 {[%clk 0:02:10]} 26. Nf3 {[%clk 0:00:43]}  h5 {[%clk 0:02:08]} 27. gxh5 {[%clk 0:00:43]}  Qxh5 {[%clk 0:02:08]} 28. Ng3 {[%clk 0:00:40]}  Qh7 {[%clk 0:02:07]} 29. Be1 {[%clk 0:00:33]}  Bf8 {[%clk 0:01:57]} 30. Qd1 {[%clk 0:00:21]}  g4 {[%clk 0:01:56]} 31. Ng1 {[%clk 0:00:17]}  Bh6 {[%clk 0:01:55]} 32. Bd2 {[%clk 0:00:13]}  Be3 {[%clk 0:01:44]} 33. Rg2 {[%clk 0:00:13]}  Qh6 {[%clk 0:01:41]} 34. Qe1 {[%clk 0:00:06]}  Rg7 {[%clk 0:01:40]} 35. Qe2 {[%clk 0:00:04]}  Rgh7 {[%clk 0:01:38]} 36. Re1 {[%clk 0:00:03]}  Bf4 {[%clk 0:01:28]} 37. Qf2 {[%clk 0:00:02]}  Nb4 {[%clk 0:01:23]} 0-1


[Site "https://www.chess.com"]